bitfinex/quotes_BTCUSD_20250604
["timestamp","ask_amount","ask_price","bid_price","bid_amount"]
[1748995796354,0.51487851,105490.0,105480.0,0.00613696]
[1748995796571,0.52435772,105490.0,105480.0,0.00613696]
[1748995797213,0.52435763,105490.0,105480.0,0.00413696]
[1748995797438,0.54409351,105490.0,105480.0,0.00413696]
[1748995797650,0.52935763,105490.0,105480.0,0.00413696]
[1748995798280,0.49201209,105490.0,105480.0,0.00413696]
[1748995798481,0.50974786,105490.0,105480.0,0.00413696]
[1748995799124,0.48253306,105490.0,105480.0,0.00413696]
[1748995799578,0.49201191,105490.0,105480.0,0.00413696]
[1748995800001,0.50149085,105490.0,105480.0,0.00413696]
[1748995800225,0.49201191,105490.0,105480.0,0.00413696]
[1748995800437,0.50974797,105490.0,105480.0,0.00413696]
[1748995800662,0.49201191,105490.0,105480.0,0.00413696]
[1748995801505,0.78013306,105490.0,105480.0,0.00413696]
[1748995801725,0.80734799,105490.0,105480.0,0.00413696]
[1748995801972,0.78961191,105490.0,105480.0,0.00413696]
[1748995802188,0.78013306,105490.0,105480.0,0.00413696]
[1748995803686,0.88212331,105490.0,105480.0,0.00413696]
[1748995803898,0.87264428,105490.0,105480.0,0.00413696]
[1748995804333,0.88212331,105490.0,105480.0,0.00413696]
[1748995804569,0.87264428,105490.0,105480.0,0.00413696]
[1748995804781,0.89160243,105490.0,105480.0,0.00413696]
[1748995804997,0.88212322,105490.0,105480.0,0.00413696]
[1748995805876,0.89160234,105490.0,105480.0,0.00413696]
[1748995806086,0.88212322,105490.0,105480.0,0.00413696]
[1748995806296,0.89160234,105490.0,105480.0,0.00413696]
[1748995806505,0.92954455,105490.0,105480.0,0.00413696]
[1748995806741,0.92954455,105490.0,105470.0,0.10880856]
[1748995806742,0.39246093,105480.0,105470.0,0.10880856]
[1748995806970,0.74894631,105480.0,105470.0,0.10880856]
[1748995807207,0.59657775,105480.0,105470.0,0.10880856]
[1748995807413,0.78618715,105480.0,105470.0,0.01700856]
[1748995808049,0.78918715,105480.0,105470.0,0.01700856]
[1748995808261,0.59957775,105480.0,105470.0,0.01700856]
[1748995808932,0.60057775,105480.0,105470.0,0.01700856]
[1748995809145,0.53291601,105480.0,105470.0,0.01700856]
[1748995809564,0.54239639,105480.0,105470.0,0.01700856]
[1748995810645,0.55187686,105480.0,105470.0,0.01700856]
[1748995811100,0.73200606,105480.0,105470.0,0.01700856]
[1748995811733,0.72252577,105480.0,105470.0,0.01700856]
[1748995811949,0.81503699,105480.0,105470.0,0.01700856]
[1748995814305,0.53291601,105480.0,105470.0,0.01700856]
[1748995814526,0.50515564,105480.0,105470.0,0.01700856]
[1748995815009,0.69476504,105480.0,105470.0,0.01700856]
[1748995816366,0.72323304,105480.0,105470.0,0.01700856]
[1748995818130,0.78837094,105480.0,105470.0,0.01700856]
[1748995818356,0.83992162,105480.0,105470.0,0.01700856]
[1748995819459,0.83992162,105480.0,105460.0,0.0918]
[1748995819460,0.55337432,105480.0,105460.0,0.0918]
[1748995819674,0.4679543,105470.0,105460.0,0.0918]
[1748995819882,0.34,105460.0,105430.0,0.34702096]
[1748995820097,0.34,105460.0,105440.0,0.09194446]
[1748995820098,0.38327387,105460.0,105440.0,0.09194446]
[1748995820336,0.0152,105450.0,105440.0,0.09194446]
[1748995820549,0.043668,105450.0,105440.0,0.09194446]
[1748995821623,0.043668,105450.0,105440.0,0.00314446]
[1748995821837,0.059768,105450.0,105440.0,0.09750446]
[1748995822287,0.044668,105450.0,105440.0,0.09750446]
[1748995822758,0.059768,105450.0,105440.0,0.09750446]
[1748995823641,0.08884195,105450.0,105440.0,0.09750446]
[1748995823857,0.42884195,105450.0,105440.0,0.09750446]
[1748995824077,0.44599334,105450.0,105440.0,0.09750446]
[1748995824754,0.44499334,105450.0,105440.0,0.09150446]
[1748995824970,0.44599334,105450.0,105440.0,0.09150446]
[1748995825661,0.44599334,105450.0,105440.0,0.09446694]
[1748995825865,0.44599334,105450.0,105440.0,0.09150446]
[1748995826081,0.44599334,105450.0,105440.0,0.09446694]
[1748995826308,0.49248903,105450.0,105440.0,0.09150446]
[1748995826966,0.44599334,105450.0,105440.0,0.09150446]
[1748995827622,0.54184764,105450.0,105440.0,0.09150446]
[1748995828052,0.84893008,105450.0,105440.0,0.09150446]
[1748995828269,0.84892999,105450.0,105440.0,0.09150446]
[1748995828696,0.83944764,105450.0,105440.0,0.09150446]
[1748995828910,0.94520237,105450.0,105440.0,0.09150446]
[1748995829131,0.032,105440.0,105430.0,0.33704]
[1748995829376,0.37213665,105440.0,105430.0,0.33704]
[1748995829600,0.38162008,105440.0,105430.0,0.33704]
[1748995829821,0.41009508,105440.0,105430.0,0.33704]
[1748995830281,0.50995827,105440.0,105430.0,0.33904]
[1748995830511,0.41957869,105440.0,105430.0,0.33904]
[1748995830735,0.73614645,105440.0,105420.0,0.09136]
[1748995830963,0.39056848,105430.0,105420.0,0.09136]
[1748995831186,0.40005299,105430.0,105420.0,0.09136]
[1748995831409,0.39056857,105430.0,105420.0,0.09136]
[1748995831638,0.39056848,105430.0,105420.0,0.09136]
[1748995831881,0.3716,105430.0,105420.0,0.09336]
[1748995832090,0.3716,105430.0,105420.0,0.09136]
[1748995832323,0.38108415,105430.0,105420.0,0.09336]
[1748995832549,0.3716,105430.0,105420.0,0.09336]
[1748995833662,0.3716,105430.0,105420.0,0.09236]
[1748995833879,0.3716,105430.0,105420.0,0.09336]
[1748995834098,0.3716,105430.0,105420.0,0.09236]
[1748995834322,0.3726,105430.0,105420.0,0.09532313]
[1748995834767,0.38208415,105430.0,105420.0,0.09236]
[1748995835647,0.3726,105430.0,105420.0,0.09236]
[1748995835906,0.38208415,105430.0,105420.0,0.09236]
[1748995837930,0.38208415,105430.0,105420.0,0.001]
[1748995837931,0.0326,105430.0,105420.0,0.001]
[1748995838152,0.0326,105430.0,105420.0,0.0924]
[1748995838813,0.0163,105430.0,105420.0,0.0924]
[1748995839040,0.001,105430.0,105420.0,0.1179]
[1748995839486,0.001,105430.0,105420.0,0.1081]
[1748995839953,0.001,105430.0,105420.0,0.1179]
[1748995840164,0.001,105430.0,105420.0,0.1081]
[1748995842437,0.029475,105430.0,105420.0,0.1081]
[1748995843105,0.06579872,105430.0,105420.0,0.1081]
[1748995843583,0.029475,105430.0,105420.0,0.1081]
[1748995844570,0.029475,105430.0,105420.0,0.0924]
[1748995844918,0.044675,105430.0,105420.0,0.0924]
[1748995845613,0.061175,105430.0,105420.0,0.0924]
[1748995846260,0.044675,105430.0,105420.0,0.0924]
[1748995846481,0.060075,105430.0,105420.0,0.0924]
[1748995847756,0.13459796,105430.0,105420.0,0.0924]
[1748995847975,0.060075,105430.0,105420.0,0.0924]
[1748995853427,0.044675,105430.0,105420.0,0.0924]
[1748995853948,0.029475,105430.0,105420.0,0.1178]
[1748995854204,0.029475,105430.0,105420.0,0.5080143]
[1748995854662,0.051,105430.0,105420.0,0.5080143]
[1748995854895,0.101,105430.0,105420.0,0.5080143]
[1748995855352,0.1,105430.0,105420.0,0.5080143]
[1748995855576,0.1,105430.0,105420.0,0.5090143]
[1748995856270,0.1,105430.0,105420.0,0.5080143]
[1748995856525,0.1,105430.0,105420.0,0.5090143]
[1748995860212,0.05,105430.0,105420.0,0.5090143]
[1748995860448,0.1,105430.0,105420.0,0.5090143]
[1748995860901,0.1,105430.0,105420.0,0.2048543]
[1748995861118,0.1,105430.0,105420.0,0.4836943]
[1748995863290,0.05,105430.0,105420.0,0.4837743]
[1748995863529,0.0653,105430.0,105420.0,0.4837343]
[1748995864471,0.0153,105430.0,105420.0,0.4837343]
[1748995864698,0.06165331,105440.0,105420.0,0.4837343]
[1748995864922,0.07815331,105440.0,105420.0,0.4837343]
[1748995865627,0.07815331,105440.0,105420.0,0.4827343]
[1748995865844,0.07815331,105440.0,105420.0,0.1892543]
[1748995866060,0.015,105430.0,105420.0,0.4838943]
[1748995866290,0.015,105430.0,105420.0,0.1892543]
[1748995866514,0.015,105430.0,105420.0,0.4828143]
[1748995866736,0.0304,105430.0,105420.0,0.4838143]
[1748995866988,0.0304,105430.0,105420.0,0.4828143]
[1748995867429,0.015,105430.0,105420.0,0.4838143]
[1748995867648,0.015,105430.0,105420.0,0.4828143]
[1748995868082,0.015,105430.0,105420.0,0.4838143]
[1748995870494,0.015,105430.0,105420.0,0.4835743]
[1748995871852,0.015,105430.0,105420.0,0.7293343]
[1748995874080,0.07675331,105440.0,105420.0,0.7293343]
[1748995875165,0.07675331,105440.0,105420.0,0.7283343]
[1748995875391,0.07675331,105440.0,105420.0,0.7293343]
[1748995875611,0.07675331,105440.0,105420.0,0.7283343]
[1748995875823,0.07675331,105440.0,105420.0,0.7293343]
[1748995877436,0.07685331,105440.0,105420.0,0.7293343]
[1748995878769,0.0152,105430.0,105420.0,0.7293343]
[1748995879467,0.0304,105430.0,105420.0,0.7293343]
[1748995879684,0.0304,105430.0,105420.0,0.7283343]
[1748995880213,0.0304,105430.0,105420.0,0.7293343]
[1748995883527,0.0304,105430.0,105420.0,0.7285343]
[1748995883753,0.03807533,105430.0,105420.0,0.3436143]
[1748995884012,0.058873,105430.0,105420.0,0.63252]
[1748995884253,0.058873,105430.0,105420.0,0.33868]
[1748995885136,0.07662072,105430.0,105420.0,0.33868]
[1748995885350,0.058873,105430.0,105420.0,0.33868]
[1748995886243,0.07662053,105430.0,105420.0,0.33868]
[1748995886462,0.058873,105430.0,105420.0,0.33868]
[1748995888283,0.07662052,105430.0,105420.0,0.33868]
[1748995888500,0.058873,105430.0,105420.0,0.33868]
[1748995888719,0.1,105430.0,105420.0,0.4511343]
[1748995888937,0.1,105430.0,105420.0,0.4609343]
[1748995888938,0.05,105430.0,105420.0,0.4609343]
[1748995889161,0.1,105430.0,105420.0,0.4609343]
[1748995890273,0.40788131,105440.0,105420.0,0.4345343]
[1748995890493,0.11788131,105440.0,105430.0,0.41814516]
[1748995890728,0.11788131,105440.0,105430.0,0.4059743]
[1748995890946,0.11788131,105440.0,105430.0,0.1124543]
[1748995891159,0.11788131,105440.0,105430.0,0.3894143]
[1748995892058,0.11888131,105440.0,105430.0,0.3894143]
[1748995894040,0.05028131,105440.0,105430.0,0.0958543]
[1748995894271,0.05028131,105440.0,105430.0,0.3894143]
[1748995896618,0.05028131,105440.0,105430.0,0.3895343]
[1748995896871,0.06888131,105440.0,105430.0,0.3895343]
[1748995897098,0.01888131,105440.0,105430.0,0.3895343]
[1748995897790,0.03488131,105440.0,105430.0,0.3895343]
[1748995898955,0.05058131,105440.0,105430.0,0.3895343]
[1748995899683,0.05058131,105440.0,105430.0,0.1867743]
[1748995899909,0.05058131,105440.0,105430.0,0.4803343]
[1748995902544,0.39058131,105440.0,105430.0,0.4804143]
[1748995903505,0.05,105430.0,105420.0,0.24576]
[1748995903720,0.3706,105430.0,105420.0,0.7261743]
[1748995903947,0.3706,105430.0,105420.0,0.7262143]
[1748995904191,0.38834544,105430.0,105420.0,0.4325343]
[1748995904429,0.38834544,105430.0,105420.0,0.63032]
[1748995904430,0.3706,105430.0,105420.0,0.63032]
[1748995904700,0.04834578,105430.0,105420.0,0.63032]
[1748995904934,0.04834558,105430.0,105420.0,0.33668]
[1748995905164,0.0306,105430.0,105420.0,0.33768]
[1748995905402,0.0306,105430.0,105420.0,0.33868]
[1748995905895,0.07229543,105430.0,105420.0,0.33868]
[1748995906139,0.0306,105430.0,105420.0,0.33868]
[1748995906376,0.04834464,105430.0,105420.0,0.33868]
[1748995906607,0.0306,105430.0,105420.0,0.33868]
[1748995907491,0.04834437,105430.0,105420.0,0.33868]
[1748995907717,0.0306,105430.0,105420.0,0.33868]
[1748995909867,0.05863414,105430.0,105420.0,0.33868]
[1748995910317,0.09412216,105430.0,105420.0,0.33868]
[1748995910534,0.09412188,105430.0,105420.0,0.33868]
[1748995910743,0.07637817,105430.0,105420.0,0.33868]
[1748995911206,0.09412195,105430.0,105420.0,0.33868]
[1748995911424,0.09412198,105430.0,105420.0,0.33868]
[1748995912126,0.06608784,105430.0,105420.0,0.33868]
[1748995913497,0.08382959,105430.0,105420.0,0.33868]
[1748995913689,0.08382957,105430.0,105420.0,0.33868]
[1748995913908,0.08382958,105430.0,105420.0,0.33868]
[1748995914121,0.06608784,105430.0,105420.0,0.33868]
[1748995914351,0.08382972,105430.0,105420.0,0.33868]
[1748995914577,0.06608784,105430.0,105420.0,0.33868]
[1748995915291,0.08382979,105430.0,105420.0,0.33868]
[1748995915512,0.40832959,105430.0,105420.0,0.33868]
[1748995915737,0.39058784,105430.0,105420.0,0.33868]
[1748995915961,0.37548784,105430.0,105420.0,0.33868]
[1748995916411,0.42548784,105430.0,105420.0,0.4345343]
[1748995916639,0.13548784,105430.0,105420.0,0.7541343]
[1748995916865,0.03548784,105430.0,105420.0,0.7541343]
[1748995917091,0.08548784,105430.0,105420.0,0.7541343]
[1748995919332,0.08548784,105430.0,105420.0,0.4602943]
[1748995919552,0.08548784,105430.0,105420.0,0.7540143]
[1748995920649,0.13548784,105430.0,105420.0,0.7442143]
[1748995920869,0.08548784,105430.0,105420.0,0.7442143]
[1748995921084,0.03548784,105430.0,105420.0,0.7540143]
[1748995921729,0.08548784,105430.0,105420.0,0.7540143]
[1748995923232,0.03548784,105430.0,105420.0,0.3696143]
[1748995923520,0.03548784,105430.0,105420.0,0.7541343]
[1748995924453,0.08548784,105430.0,105420.0,0.7541343]
[1748995924666,0.08548784,105430.0,105420.0,0.7542543]
[1748995924873,0.08548784,105430.0,105420.0,0.7444543]
[1748995925124,0.08548784,105430.0,105420.0,0.7542543]
[1748995926012,0.08548784,105430.0,105420.0,0.7281343]
[1748995926736,0.08548784,105430.0,105420.0,0.7433343]
[1748995926965,0.08548784,105430.0,105420.0,0.7531343]
[1748995927202,0.03548784,105430.0,105420.0,0.7531343]
[1748995928395,0.03548784,105430.0,105420.0,1.10811515]
[1748995928633,0.01788131,105440.0,105430.0,0.37964085]
[1748995928870,0.01774751,105450.0,105440.0,0.0251]
[1748995929124,0.01774751,105450.0,105440.0,0.78156422]
[1748995929372,0.01774751,105450.0,105440.0,0.7791943]
[1748995930086,0.01774751,105450.0,105440.0,1.5618618]
[1748995930322,0.01874751,105450.0,105440.0,1.59201504]
[1748995931001,0.01874751,105450.0,105440.0,1.59601504]
[1748995931654,0.01874751,105450.0,105440.0,1.30145504]
[1748995931878,0.01874751,105450.0,105440.0,1.59605504]
[1748995939047,0.0266189,105460.0,105450.0,0.01454085]
[1748995939329,0.066,105490.0,105470.0,0.01454085]
[1748995939567,0.066,105490.0,105480.0,0.7271343]
[1748995939568,0.06614433,105490.0,105480.0,0.7271343]
[1748995939819,0.08134433,105490.0,105480.0,0.7271343]
[1748995942015,0.13134433,105490.0,105480.0,0.7291343]
[1748995942485,0.08134433,105490.0,105480.0,0.4341343]
[1748995942719,0.08134433,105490.0,105480.0,0.7294143]
[1748995944412,0.08134433,105490.0,105480.0,0.3434943]
[1748995944666,0.08134433,105490.0,105480.0,0.24764]
[1748995944667,0.37134433,105490.0,105480.0,0.24764]
[1748995944915,0.37134433,105490.0,105480.0,0.33972]
[1748995945682,0.37134433,105490.0,105480.0,0.33872]
[1748995946152,0.37334433,105490.0,105480.0,0.33872]
[1748995947641,0.37334433,105490.0,105480.0,0.24564]
[1748995947891,0.76968394,105490.0,105480.0,0.33772]
[1748995950526,0.76868394,105490.0,105480.0,0.33772]
[1748995950940,0.77068394,105490.0,105480.0,0.33772]
[1748995951072,0.76868394,105490.0,105480.0,0.33772]
[1748995951901,0.76968394,105490.0,105480.0,0.33772]
[1748995952133,0.78743833,105490.0,105480.0,0.33772]
[1748995952362,0.77856118,105490.0,105480.0,0.33772]
[1748995952577,0.76968394,105490.0,105480.0,0.33772]
[1748995953022,0.78743847,105490.0,105480.0,0.33772]
[1748995953280,0.1,105450.0,105440.0,0.34898096]
[1748995953543,0.0821,105450.0,105440.0,0.78255526]
[1748995953751,0.0821,105450.0,105440.0,1.07795526]
[1748995954228,0.0821,105450.0,105440.0,1.07791526]
[1748995954469,0.0831,105450.0,105440.0,1.08791526]
[1748995954722,0.0831,105450.0,105440.0,1.0119743]
[1748995955961,0.0831,105450.0,105440.0,0.7166143]
[1748995956200,0.0831,105450.0,105440.0,0.6245343]
[1748995956427,0.0831,105450.0,105440.0,1.0119343]
[1748995957085,0.0831,105450.0,105440.0,1.01987391]
[1748995957313,0.001,105450.0,105440.0,1.42259391]
[1748995957523,0.101,105450.0,105440.0,1.42259391]
[1748995958407,0.051,105450.0,105440.0,1.40739391]
[1748995958818,0.0819,105450.0,105440.0,1.0121743]
[1748995959930,0.0819,105450.0,105440.0,0.6245343]
[1748995960135,0.0819,105450.0,105440.0,0.7166143]
[1748995960345,0.0819,105450.0,105440.0,1.0121343]
[1748995960553,0.0819,105450.0,105440.0,1.40247391]
[1748995960762,0.0809,105450.0,105440.0,1.39747391]
[1748995961011,0.0809,105450.0,105440.0,1.40047391]
[1748995961239,0.0809,105450.0,105440.0,1.40247391]
[1748995961444,0.0809,105450.0,105440.0,1.39947391]
[1748995961647,0.0809,105450.0,105440.0,1.40047391]
[1748995962479,0.0809,105450.0,105440.0,1.0051343]
[1748995963264,0.1309,105450.0,105440.0,1.0051343]
[1748995963483,0.0809,105450.0,105440.0,1.0053343]
[1748995963961,0.0809,105450.0,105440.0,0.6175343]
[1748995964173,0.0809,105450.0,105440.0,1.0052943]
[1748995964624,0.0809,105450.0,105440.0,0.6175343]
[1748995964880,0.0809,105450.0,105440.0,0.7096143]
[1748995965107,0.0809,105450.0,105440.0,1.0052143]
[1748995966621,0.0809,105450.0,105440.0,0.7096143]
[1748995966847,0.0809,105450.0,105440.0,1.0050543]
[1748995967977,0.0309,105450.0,105440.0,0.7096143]
[1748995968199,0.0309,105450.0,105440.0,1.0049743]
[1748995969120,0.3709,105450.0,105440.0,1.0049743]
[1748995970203,0.3709,105450.0,105440.0,0.7096143]
[1748995970460,0.3709,105450.0,105440.0,1.0047743]
[1748995970931,0.3709,105450.0,105440.0,0.7096143]
[1748995971471,0.3709,105450.0,105440.0,0.90884]
[1748995971716,0.42623961,105450.0,105440.0,0.9088]
[1748995972602,0.0309,105450.0,105440.0,0.9088]
[1748995974605,0.0309,105450.0,105440.0,0.61376]
[1748995974825,0.0309,105450.0,105440.0,0.9086]
[1748995974826,0.42623961,105450.0,105440.0,0.9086]
[1748995975298,0.42623961,105450.0,105440.0,0.90816]
[1748995975777,0.42623961,105450.0,105440.0,0.61336]
[1748995976033,0.42623961,105450.0,105440.0,0.90816]
[1748995976970,0.42623961,105450.0,105440.0,0.90516]
[1748995977234,0.42623961,105450.0,105440.0,0.90616]
[1748995977446,0.42623961,105450.0,105440.0,0.33832]
[1748995977447,1.17106166,105450.0,105440.0,0.33832]
[1748995977664,0.77572196,105450.0,105440.0,0.33832]
[1748995978182,0.7852044,105450.0,105440.0,0.33832]
[1748995979108,0.77572196,105450.0,105440.0,0.33832]
[1748995979352,0.76623961,105450.0,105440.0,0.33832]
[1748995979565,0.77572205,105450.0,105440.0,0.33832]
[1748995979785,1.18881104,105450.0,105440.0,0.33832]
[1748995980003,1.18054419,105450.0,105440.0,0.33832]
[1748995980225,1.20777581,105450.0,105440.0,0.33832]
[1748995980468,1.19829317,105450.0,105440.0,0.33832]
[1748995980705,0.77572205,105450.0,105440.0,0.33832]
[1748995981173,1.18054428,105450.0,105440.0,0.33832]
[1748995981401,0.77572196,105450.0,105440.0,0.33832]
[1748995981618,0.38986488,105450.0,105440.0,0.33832]
[1748995981862,0.77572196,105450.0,105440.0,0.33832]
[1748995982307,0.78520449,105450.0,105440.0,0.33832]
[1748995982527,0.77572196,105450.0,105440.0,0.33832]
[1748995983195,0.80295353,105450.0,105440.0,0.33832]
[1748995983410,0.7852044,105450.0,105440.0,0.33832]
[1748995984608,0.8029536,105450.0,105440.0,0.33832]
[1748995984898,0.80295369,105450.0,105440.0,0.33832]
[1748995985357,0.82070377,105450.0,105440.0,0.33832]
[1748995985605,0.79347116,105450.0,105440.0,0.33832]
[1748995986028,0.81122118,105450.0,105440.0,0.33832]
[1748995986255,0.79347116,105450.0,105440.0,0.33832]
[1748995986571,1.33689647,105450.0,105440.0,0.33832]
[1748995986784,1.33689647,105450.0,105440.0,0.24664]
[1748995986785,1.36439516,105450.0,105440.0,0.24664]
[1748995987042,1.40111033,105450.0,105440.0,0.33832]
[1748995987277,1.40111124,105450.0,105440.0,0.33832]
[1748995987492,1.38336103,105450.0,105440.0,0.33732]
[1748995987717,1.38636094,105450.0,105440.0,0.33832]
[1748995987951,1.68396094,105450.0,105440.0,0.33832]
[1748995988615,1.67747859,105450.0,105440.0,0.33832]
[1748995988836,1.67747904,105450.0,105440.0,0.09168]
[1748995989041,0.0324,105430.0,105420.0,0.24576]
[1748995989275,0.76773961,105430.0,105420.0,0.63221665]
[1748995989495,0.76773961,105430.0,105420.0,0.33757665]
[1748995990834,0.76773961,105430.0,105420.0,0.33857665]
[1748995991121,0.76773961,105430.0,105420.0,0.24689665]
[1748995991352,0.76773961,105430.0,105420.0,0.33857665]
[1748995991582,0.77722394,105430.0,105420.0,0.33857665]
[1748995991792,0.77722385,105430.0,105420.0,0.33857665]
[1748995992019,0.7949732,105430.0,105420.0,0.33857665]
[1748995992232,0.77722385,105430.0,105420.0,0.33857665]
[1748995992857,0.78748875,105430.0,105420.0,0.33857665]
[1748995992860,0.76973961,105430.0,105420.0,0.33857665]
[1748995993072,0.78748915,105430.0,105420.0,0.33857665]
[1748995993287,0.76973961,105430.0,105420.0,0.33757665]
[1748995993840,0.77173961,105430.0,105420.0,0.33757665]
[1748995994280,0.76173961,105430.0,105420.0,0.33757665]
[1748995997706,0.3664,105430.0,105420.0,0.33757665]
[1748995997945,0.3603,105430.0,105420.0,0.43343095]
[1748995998185,0.344,105430.0,105420.0,0.44863095]
[1748995999025,0.344,105430.0,105420.0,0.74279095]
[1748995999267,0.344,105430.0,105420.0,0.35695095]
[1748995999494,0.36,105430.0,105420.0,0.72755095]
[1748996000136,0.3751,105430.0,105420.0,0.72755095]
[1748996000365,0.36,105430.0,105420.0,0.72755095]
[1748996006549,0.3752,105430.0,105420.0,0.72755095]
[1748996006976,0.0352,105430.0,105420.0,0.72755095]
[1748996007215,0.3752,105430.0,105420.0,0.43283095]
[1748996007436,0.3752,105430.0,105420.0,0.72655095]
[1748996007864,0.3752,105430.0,105420.0,0.34175095]
[1748996008080,0.77053961,105430.0,105420.0,0.72651095]
[1748996010493,0.43053961,105430.0,105420.0,0.24589665]
[1748996010738,0.43053961,105430.0,105420.0,0.33697665]
[1748996011181,0.449508,105430.0,105420.0,0.33697665]
[1748996011387,0.789508,105430.0,105420.0,0.33697665]
[1748996011603,0.79899242,105430.0,105420.0,0.33697665]
[1748996011836,0.789508,105430.0,105420.0,0.33697665]
[1748996012078,0.80725779,105430.0,105420.0,0.33697665]
[1748996012304,0.789508,105430.0,105420.0,0.33697665]
[1748996012962,0.77053961,105430.0,105420.0,0.33697665]
[1748996014026,0.3752,105430.0,105420.0,0.33697665]
[1748996014248,0.77053961,105430.0,105420.0,0.33697665]
[1748996014476,0.78828955,105430.0,105420.0,0.33697665]
[1748996014908,0.80603953,105430.0,105420.0,0.33697665]
[1748996015129,0.78828955,105430.0,105420.0,0.33697665]
[1748996017290,0.80604085,105430.0,105420.0,0.33697665]
[1748996017508,0.78828955,105430.0,105420.0,0.33697665]
[1748996019014,0.8060409,105430.0,105420.0,0.33697665]
[1748996019220,0.78828955,105430.0,105420.0,0.33697665]
[1748996020285,0.78828955,105430.0,105420.0,0.24589665]
[1748996020500,0.78828955,105430.0,105420.0,0.33697665]
[1748996020698,0.80604091,105430.0,105420.0,0.33697665]
[1748996020959,0.78828955,105430.0,105420.0,0.33697665]
[1748996021543,0.80604108,105430.0,105420.0,0.33697665]
[1748996021743,0.78828955,105430.0,105420.0,0.33697665]
[1748996022133,0.78828955,105430.0,105420.0,0.24589665]
[1748996022331,0.78828955,105430.0,105420.0,0.33697665]
[1748996024107,0.79777379,105430.0,105420.0,0.33697665]
[1748996024338,0.80604108,105430.0,105420.0,0.33697665]
[1748996024560,0.82500996,105430.0,105420.0,0.33697665]
[1748996024822,0.81674326,105430.0,105420.0,0.33697665]
[1748996025263,0.82622813,105430.0,105420.0,0.33697665]
[1748996025692,0.82622813,105430.0,105420.0,0.24589665]
[1748996025951,1.57767871,105430.0,105420.0,0.33697665]
[1748996026175,1.59542935,105430.0,105420.0,0.33697665]
[1748996026425,1.86579268,105430.0,105420.0,0.33697665]
[1748996027070,1.88354286,105430.0,105420.0,0.33697665]
[1748996027299,1.86579268,105430.0,105420.0,0.33697665]
[1748996027765,1.86578087,105430.0,105420.0,0.33697665]
[1748996028425,1.88353078,105430.0,105420.0,0.00013665]
[1748996028648,0.04188622,105410.0,105400.0,0.29393141]
[1748996028864,0.46445999,105410.0,105400.0,0.09117141]
[1748996029091,0.44671169,105410.0,105400.0,0.09117141]
[1748996029533,0.78671169,105410.0,105400.0,0.09117141]
[1748996029764,0.80445935,105410.0,105400.0,0.09217141]
[1748996029985,0.78671169,105410.0,105400.0,0.09217141]
[1748996030457,0.81394553,105410.0,105400.0,0.09317141]
[1748996030689,1.10902136,105410.0,105400.0,0.09317141]
[1748996030922,0.95751218,105410.0,105400.0,0.09317141]
[1748996031184,0.98474524,105410.0,105400.0,0.09317141]
[1748996031402,0.96699885,105410.0,105400.0,0.09317141]
[1748996031626,0.96699885,105410.0,105400.0,0.09217141]
[1748996032069,0.96699885,105410.0,105400.0,0.09317141]
[1748996032329,0.90153969,105410.0,105400.0,0.09217141]
[1748996032545,0.93007297,105410.0,105400.0,0.09217141]
[1748996032767,0.93007297,105410.0,105400.0,0.09317141]
[1748996032994,0.94781927,105410.0,105400.0,0.00209141]
[1748996033216,1.60485087,105410.0,105400.0,0.00209141]
[1748996033450,1.64034175,105410.0,105400.0,0.00209141]
[1748996033698,1.63391358,105410.0,105400.0,0.00209141]
[1748996033927,1.23857397,105410.0,105400.0,0.00109141]
[1748996034165,1.25931878,105410.0,105400.0,0.00109141]
[1748996034414,1.24157397,105410.0,105400.0,0.00109141]
[1748996034673,1.23025666,105410.0,105400.0,0.00109141]
[1748996034934,1.23025666,105410.0,105400.0,9.141e-05]
[1748996035190,1.51461008,105410.0,105400.0,9.141e-05]
[1748996035460,1.51850759,105410.0,105400.0,0.00109141]
[1748996036422,1.53625265,105410.0,105400.0,0.00109141]
[1748996036663,1.61101881,105410.0,105400.0,0.00109141]
[1748996036907,1.53625262,105410.0,105400.0,0.00109141]
[1748996037154,1.51850759,105410.0,105400.0,0.00109141]
[1748996037387,1.42442914,105410.0,105400.0,0.00109141]
[1748996037840,1.44217417,105410.0,105400.0,0.00109141]
[1748996038010,1.45991912,105410.0,105400.0,0.00109141]
[1748996038216,1.44217417,105410.0,105400.0,0.00109141]
[1748996040276,1.45991914,105410.0,105400.0,0.00109141]
[1748996040480,1.45991916,105410.0,105400.0,0.00109141]
[1748996040698,1.44217417,105410.0,105400.0,0.00109141]
[1748996041306,1.45991915,105410.0,105400.0,0.00109141]
[1748996041531,1.44217417,105410.0,105400.0,0.00109141]
[1748996041736,1.45991896,105410.0,105400.0,0.00109141]
[1748996041942,1.44217417,105410.0,105400.0,0.00109141]
[1748996042167,1.45991915,105410.0,105400.0,0.00109141]
[1748996042375,1.44217417,105410.0,105400.0,0.00109141]
[1748996044571,1.45991912,105410.0,105400.0,0.00109141]
[1748996044779,1.44217417,105410.0,105400.0,0.00109141]
[1748996044981,1.45991918,105410.0,105400.0,0.00109141]
[1748996045187,1.44217417,105410.0,105400.0,0.00109141]
[1748996045392,1.45991918,105410.0,105400.0,0.00109141]
[1748996045606,1.44217417,105410.0,105400.0,0.00109141]
[1748996047646,1.16607916,105410.0,105400.0,0.00109141]
[1748996047839,1.45931922,105410.0,105400.0,0.00109141]
[1748996048065,1.44157417,105410.0,105400.0,0.00109141]
[1748996048274,1.45931924,105410.0,105400.0,0.00109141]
[1748996048708,0.76380043,105400.0,105390.0,0.09112]
[1748996048956,0.90999977,105400.0,105390.0,0.09112]
[1748996049151,0.89225473,105400.0,105390.0,0.09112]
[1748996049649,0.09491828,105410.0,105390.0,0.10772]
[1748996049852,0.344,105400.0,105390.0,0.10872]
[1748996050320,0.75708614,105400.0,105390.0,0.10872]
[1748996050533,0.73933961,105400.0,105390.0,0.10872]
[1748996050745,0.75708608,105400.0,105390.0,0.10872]
[1748996050963,0.73933961,105400.0,105390.0,0.10872]
[1748996051189,0.75353961,105400.0,105390.0,0.09112]
[1748996051408,0.75353961,105400.0,105390.0,0.09212]
[1748996051625,0.76928594,105400.0,105390.0,0.09112]
[1748996051835,0.75153961,105400.0,105390.0,0.09112]
[1748996052051,0.75453961,105400.0,105390.0,0.09212]
[1748996052482,0.75653961,105400.0,105390.0,0.09212]
[1748996052730,0.87828085,105400.0,105390.0,0.09204]
[1748996052973,1.20311375,105400.0,105390.0,0.09204]
[1748996053221,1.17588076,105400.0,105390.0,0.09204]
[1748996053440,1.1853677,105400.0,105390.0,0.001]
[1748996053657,1.1853677,105400.0,105390.0,0.09204]